bitfinex-derivatives/quotes_BNBF0:USTF0_20250529
["timestamp","ask_amount","ask_price","bid_price","bid_amount"]
[1748514432414,1.04999206,686.22,685.63,0.57159987]
[1748514432616,1.04999206,686.21,685.64,0.57159987]
[1748514432814,1.04999206,686.2,685.65,0.57159987]
[1748514433014,1.04999206,686.19,685.66,0.57159987]
[1748514433214,1.04999206,686.18,685.67,0.57159987]
[1748514433413,1.04999206,686.17,685.68,0.57159987]
[1748514433613,1.04999206,686.16,685.69,0.57159987]
[1748514433813,0.29139227,686.36,685.61,0.552]
[1748514434017,1.05004339,686.35,685.62,0.57161287]
[1748514434216,1.05004339,686.34,685.63,0.57161287]
[1748514434415,1.05004345,686.33,685.64,0.57161287]
[1748514434617,1.05004345,686.32,685.65,0.57161287]
[1748514434819,0.29139227,686.36,685.61,0.552]
[1748514435012,0.29139227,686.36,685.62,0.57161704]
[1748514435217,1.05005125,686.35,685.63,0.57161704]
[1748514435417,0.29139227,686.36,685.64,0.57161704]
[1748514435614,0.29139227,686.36,685.65,0.57161704]
[1748514435815,1.05006656,686.35,685.66,0.57161704]
[1748514436115,1.05006379,686.34,685.67,0.57162177]
[1748514436315,1.05006379,686.33,685.68,0.57162177]
[1748514436518,1.05006682,686.32,685.69,0.57162076]
[1748514436716,1.05006682,686.31,685.7,0.57162076]
[1748514436919,1.05006682,686.31,685.61,0.552]
[1748514436920,1.05006682,686.3,685.71,0.57162076]
[1748514437121,1.05006682,686.29,685.72,0.57162076]
[1748514437321,1.0500836,686.28,685.73,0.57162076]
[1748514437520,0.29139227,686.36,685.74,0.57162076]
[1748514437521,1.0500836,686.27,685.74,0.57162076]
[1748514437721,1.0500836,686.26,685.75,0.57162076]
[1748514437921,1.0500836,686.25,685.76,0.57162076]
[1748514438122,1.05012286,686.24,685.77,0.57165002]
[1748514438322,0.29139227,686.36,685.78,0.57165002]
[1748514438522,1.05012276,686.35,685.79,0.57165002]
[1748514438718,1.05012276,686.34,685.8,0.57165658]
[1748514438923,0.29139227,686.36,685.61,0.552]
[1748514439223,1.05017179,686.35,685.62,0.57167944]
[1748514439420,1.05017179,686.34,685.63,0.57167944]
[1748514439618,1.05017179,686.33,685.64,0.57167944]
[1748514439820,1.05017179,686.32,685.65,0.57171009]
[1748514440017,1.05017179,686.31,685.66,0.57171009]
[1748514440319,1.05017179,686.3,685.67,0.57171009]
[1748514440517,1.05017179,686.29,685.68,0.57171009]
[1748514440720,1.05019398,686.28,685.69,0.57171009]
[1748514440917,1.05019398,686.27,685.7,0.57171009]
[1748514441123,1.05019398,686.26,685.71,0.57171009]
[1748514441423,1.05017966,686.25,685.72,0.57173912]
[1748514441622,1.05017966,686.24,685.73,0.57173912]
[1748514441917,1.05022022,686.23,685.74,0.57176362]
[1748514442120,1.05022022,686.22,685.75,0.57176362]
[1748514442319,1.05022022,686.21,685.76,0.57176362]
[1748514442623,1.05022022,686.2,685.77,0.57176362]
[1748514442922,1.05022022,686.19,685.78,0.57176692]
[1748514443124,1.05022022,686.18,685.79,0.57176692]
[1748514443322,1.05022022,686.17,685.8,0.57176692]
[1748514443619,1.05022022,686.16,685.81,0.57177212]
[1748514443922,1.05022022,686.15,685.82,0.57177212]
[1748514444124,1.0502595,686.14,685.83,0.57177312]
[1748514444319,1.05026009,686.13,685.84,0.57177312]
[1748514444529,1.05026009,686.12,685.85,0.57177312]
[1748514444720,1.05027435,686.11,685.86,0.57178159]
[1748514444924,1.05027435,686.1,685.87,0.57178159]
[1748514445125,1.05027286,686.09,685.88,0.571781]
[1748514445326,1.05027286,686.08,685.89,0.571781]
[1748514445526,1.05027286,686.07,685.9,0.571781]
[1748514445728,1.05027286,686.06,685.91,0.571781]
[1748514446030,1.05041609,686.05,685.92,0.571781]
[1748514446221,1.05041609,686.04,685.93,0.571781]
[1748514446422,1.05041609,686.03,685.94,0.571781]
[1748514446622,1.05044132,686.02,685.61,0.552]
[1748514446923,1.05044132,686.01,685.62,0.57180195]
[1748514447121,1.05044132,686.0,685.63,0.57180195]
[1748514447426,1.05044132,685.99,685.64,0.57180195]
[1748514447623,1.05044132,685.98,685.65,0.57180195]
[1748514447827,1.05044132,685.97,685.66,0.57180195]
[1748514448023,1.05047358,685.96,685.67,0.57180195]
[1748514448327,1.05047358,685.95,685.68,0.57181514]
[1748514448628,1.05053417,685.94,685.69,0.57181514]
[1748514448823,1.05053417,685.93,685.7,0.57181514]
[1748514449124,1.05057118,685.92,685.71,0.57181514]
[1748514449326,1.05057118,685.91,685.72,0.57181514]
[1748514449527,1.05058788,685.9,685.73,0.57178068]
[1748514449728,0.29139227,686.36,685.74,0.57178068]
[1748514449925,1.05060438,686.35,685.75,0.57178068]
[1748514450126,1.05059947,686.34,685.76,0.57179082]
[1748514450326,1.05059947,686.33,685.77,0.57179082]
[1748514450527,1.05059702,686.32,685.78,0.57179082]
[1748514450728,1.05059702,686.31,685.79,0.57179082]
[1748514450928,1.05059702,686.3,685.8,0.57179082]
[1748514451124,1.05059702,686.29,685.81,0.57179082]
[1748514451327,1.05069102,686.28,685.82,0.57185534]
[1748514451527,1.05069102,686.27,685.83,0.57185534]
[1748514451729,0.29139227,686.36,685.84,0.57185534]
[1748514451730,1.05069102,686.26,685.84,0.57185534]
[1748514451929,1.05069102,686.25,685.85,0.57185534]
[1748514452130,1.05069102,686.24,685.86,0.57187189]
[1748514452329,1.05069102,686.23,685.87,0.57187189]
[1748514452629,1.05069102,686.23,685.81,0.595]
[1748514452630,1.05069102,686.22,685.88,0.57187189]
[1748514452830,1.05069102,686.21,685.89,0.57187189]
[1748514453130,0.29139227,686.36,685.81,0.595]
[1748514453430,1.05077381,686.35,685.82,0.57188937]
[1748514453626,1.05076585,686.34,685.83,0.57189264]
[1748514453831,1.05076585,686.33,685.84,0.5719033]
[1748514454130,1.05076585,686.32,685.85,0.5719033]
[1748514454331,1.05076585,686.31,685.86,0.5719033]
[1748514454531,1.05076585,686.3,685.87,0.5719033]
[1748514454831,1.05080224,686.29,685.88,0.5719161]
[1748514455029,1.05080224,686.29,685.81,0.595]
[1748514455030,1.05080224,686.28,685.89,0.5719161]
[1748514455228,1.05080396,686.27,685.9,0.57191492]
[1748514455432,1.0507905,686.26,685.91,0.57191492]
[1748514455629,0.29139227,686.36,685.81,0.595]
[1748514455829,1.05079374,686.35,685.82,0.57191825]
[1748514456034,1.05079831,686.34,685.83,0.57192129]
[1748514456332,1.05080118,686.33,685.84,0.5719212]
[1748514456532,1.05080118,686.32,685.85,0.5719212]
[1748514456832,1.05080118,686.31,685.86,0.57192381]
[1748514457028,1.05080118,686.3,685.87,0.57192381]
[1748514457230,0.29139227,686.36,685.88,0.5719211]
[1748514457231,1.05081891,686.29,685.88,0.5719211]
[1748514457427,1.05080595,686.28,685.89,0.57192544]
[1748514457628,1.05080595,686.27,685.9,0.57192544]
[1748514457834,1.05080944,686.26,685.91,0.57192544]
[1748514458029,0.29139227,686.36,685.92,0.57192544]
[1748514458230,1.0508048,686.35,685.93,0.57192544]
[1748514458427,1.05079886,686.34,685.94,0.57192544]
[1748514458632,1.05080662,686.33,685.95,0.57192876]
[1748514458829,1.05080662,686.32,685.96,0.57192876]
[1748514459028,1.05080662,686.31,685.97,0.57192876]
[1748514459231,1.05080769,686.3,685.98,0.57192845]
[1748514459429,1.05080769,686.29,685.99,0.57192845]
[1748514459633,0.29139227,686.36,686.0,0.57192845]
[1748514459634,1.05080769,686.28,686.0,0.57192845]
[1748514459934,1.05080769,686.28,685.81,0.595]
[1748514459935,1.05085527,686.27,686.01,0.57192845]
[1748514460130,1.05085527,686.26,686.02,0.57192845]
[1748514460434,1.05085527,686.25,686.03,0.57192845]
[1748514460634,1.05085527,686.24,686.04,0.57192845]
[1748514460831,1.05085527,686.23,685.81,0.595]
[1748514461035,1.05083961,686.22,685.82,0.57193238]
[1748514461234,1.05083961,686.21,685.83,0.57193238]
[1748514461435,1.05083961,686.2,685.84,0.57193238]
[1748514461734,1.05083961,686.19,685.85,0.57193238]
[1748514461938,1.05083961,686.18,685.86,0.57193238]
[1748514462234,1.05083961,686.18,685.81,0.595]
[1748514462235,0.29139227,686.36,685.81,0.595]
[1748514462431,1.05084472,686.35,685.82,0.57193626]
[1748514462630,1.05084461,686.34,685.83,0.57193606]
[1748514462829,0.29139227,686.36,685.84,0.57193606]
[1748514463034,0.29139227,686.36,685.85,0.57193612]
[1748514463232,0.29139227,686.36,685.86,0.57193612]
[1748514463233,1.05070333,686.35,685.86,0.57193612]
[1748514463432,1.05070333,686.34,685.87,0.57193612]
[1748514463632,1.05070333,686.33,685.88,0.57193612]
[1748514463831,1.05070333,686.33,685.81,0.595]
[1748514463832,1.05070333,686.32,685.89,0.57193612]
[1748514464033,1.05062622,686.31,685.9,0.57193612]
[1748514464238,1.05062622,686.3,685.91,0.57193612]
[1748514464438,1.05062622,686.29,685.92,0.57190656]
[1748514464633,1.05062622,686.28,685.93,0.57190656]
[1748514464839,1.05056882,686.27,685.94,0.57187131]
[1748514465032,1.05056882,686.26,685.95,0.57187131]
[1748514465339,1.05056882,686.25,685.96,0.57187131]
[1748514465537,1.05056882,686.24,685.97,0.57187131]
[1748514465736,1.05056882,686.23,685.98,0.57187131]
[1748514465945,1.05056882,686.22,685.81,0.595]
[1748514466244,1.05045724,686.21,685.82,0.57184204]
[1748514466449,1.05045724,686.2,685.83,0.57184204]
[1748514466647,1.05045724,686.19,685.84,0.57184204]
[1748514466845,1.05045724,686.18,685.85,0.57184204]
[1748514467044,0.29139227,686.36,685.86,0.57184204]
[1748514467245,0.29139227,686.36,685.87,0.57181486]
[1748514467545,1.05048222,686.35,685.88,0.57181471]
[1748514467743,1.05048426,686.34,685.89,0.57181471]
[1748514468046,1.05048426,686.33,685.9,0.57181471]
[1748514468246,1.05048426,686.32,685.91,0.57181471]
[1748514468448,1.05048426,686.31,685.92,0.57181471]
[1748514468747,1.0503931,686.3,685.93,0.57176971]
[1748514469048,1.0503931,686.29,685.94,0.57176971]
[1748514469248,1.05040098,686.28,685.95,0.57176984]
[1748514469448,1.05040098,686.27,685.96,0.57176984]
[1748514469645,1.05030608,686.26,685.93,0.844]
[1748514469948,1.05030616,686.25,685.94,0.57174539]
[1748514470148,1.05030616,686.24,685.95,0.57174539]
[1748514470351,1.05029108,686.23,685.93,0.844]
[1748514470551,1.05027668,686.22,685.94,0.57175434]
[1748514470750,1.05027668,686.21,685.93,0.844]
[1748514470947,1.05027668,686.2,685.94,0.57170834]
[1748514471155,0.29139227,686.36,685.93,0.844]
[1748514471353,1.05019186,686.35,685.94,0.57170844]
[1748514471554,1.34159262,686.34,685.94,0.612]
[1748514471749,1.05019186,686.33,685.94,0.612]
[1748514471952,1.05019186,686.32,685.94,0.612]
[1748514472253,0.29140076,686.34,685.94,0.612]
[1748514472455,1.05013051,686.33,685.94,0.612]
[1748514472658,1.05013051,686.32,685.94,0.612]
[1748514472858,1.05013051,686.31,685.94,0.612]
[1748514473057,0.29140076,686.34,685.94,0.612]
[1748514473058,1.05013051,686.3,685.94,0.612]
[1748514473358,1.05013051,686.29,685.94,0.612]
[1748514473557,1.05013051,686.28,685.94,0.612]
[1748514473757,1.05002471,686.27,685.94,0.612]
[1748514474058,1.05002471,686.26,685.94,0.612]
[1748514474258,1.05002471,686.25,685.94,0.612]
[1748514474451,1.05002555,686.24,685.94,0.612]
[1748514474653,1.04997258,686.23,685.94,0.612]
[1748514474957,1.04997258,686.22,685.94,0.612]
[1748514475158,0.29140076,686.34,685.94,0.612]
[1748514475159,1.04996524,686.21,685.94,0.612]
[1748514475360,1.04996524,686.2,685.94,0.612]
[1748514475653,1.04996524,686.19,685.94,0.612]
[1748514475853,1.04996524,686.18,685.94,0.612]
[1748514476053,1.04996524,686.17,685.94,0.612]
[1748514476255,1.04996524,686.16,685.94,0.612]
[1748514476459,1.04996524,686.15,685.94,0.612]
[1748514476760,1.04996524,686.14,685.94,0.612]
[1748514476957,1.04996524,686.13,685.94,0.612]
[1748514477159,1.04996524,686.12,685.94,0.612]
[1748514477359,1.04996524,686.11,685.94,0.612]
[1748514477559,1.04978772,686.1,685.94,0.612]
[1748514477761,1.04978926,686.09,685.94,0.612]
[1748514477963,1.04978926,686.08,685.94,0.612]
[1748514478160,1.04978042,686.07,685.94,0.612]
[1748514478361,1.04978981,686.06,685.94,0.612]
[1748514478559,1.04978981,686.05,685.94,0.612]
[1748514478863,1.04978981,686.04,685.94,0.612]
[1748514479058,1.04978981,686.03,685.94,0.612]
[1748514479264,1.04978981,686.02,685.94,0.612]
[1748514479462,1.04978981,686.01,685.94,0.612]
[1748514479761,1.04978981,686.0,685.94,0.612]
[1748514479957,1.04978981,685.99,685.94,0.612]
[1748514480162,1.04969737,685.98,685.94,0.612]
[1748514480359,0.29140076,686.34,685.94,0.612]
[1748514480558,1.04969944,686.33,685.94,0.612]
[1748514480760,1.04969944,686.32,685.94,0.612]
[1748514481059,1.04969944,686.31,685.94,0.612]
[1748514481265,1.04966894,686.3,685.94,0.612]
[1748514481464,1.04966894,686.29,685.94,0.612]
[1748514481659,1.04967241,686.28,685.94,0.612]
[1748514481858,1.04967241,686.27,685.94,0.612]
[1748514482061,1.04967241,686.26,685.94,0.612]
[1748514482358,1.04967241,686.25,685.94,0.612]
[1748514482558,1.04967241,686.24,685.94,0.612]
[1748514482758,1.04967241,686.23,685.94,0.612]
[1748514483063,1.04959891,686.22,685.94,0.612]
[1748514483259,1.04959891,686.21,685.94,0.612]
[1748514483461,1.04959891,686.2,685.94,0.612]
[1748514483659,1.04959891,686.19,685.94,0.612]
[1748514483863,1.04959891,686.18,685.94,0.612]
[1748514484063,1.04959891,686.17,685.94,0.612]
[1748514484264,1.04959891,686.16,685.94,0.612]
[1748514484464,1.04959891,686.15,685.94,0.612]
[1748514484765,1.04959891,686.14,685.94,0.612]
[1748514484962,1.04959891,686.13,685.94,0.612]
[1748514485263,1.04959891,686.12,685.94,0.612]
[1748514485463,1.04959891,686.11,685.94,0.612]
[1748514485668,1.04954696,686.1,685.94,0.612]
[1748514485866,1.04954696,686.09,685.94,0.612]
[1748514486066,1.04950531,686.08,685.94,0.612]
[1748514486366,1.04950531,686.07,685.94,0.612]
[1748514486566,1.04950531,686.06,685.94,0.612]
[1748514486767,1.04950531,686.05,685.94,0.612]
[1748514487068,1.04950531,686.04,685.94,0.612]
[1748514487267,0.29140076,686.34,685.94,0.612]
[1748514487268,1.04950531,686.03,685.94,0.612]
[1748514487463,1.04950531,686.02,685.94,0.612]
[1748514487666,1.04950531,686.01,685.94,0.612]
[1748514487867,1.04950531,686.0,685.94,0.612]
[1748514488168,1.04954061,685.99,685.94,0.612]
[1748514488464,1.04954061,685.98,685.94,0.612]
[1748514488668,1.04954061,685.97,685.94,0.612]
[1748514488868,1.04954061,685.96,685.94,0.612]
[1748514489063,1.04954061,685.95,685.94,0.612]
[1748514489568,1.04945455,685.95,685.94,0.612]
[1748514490971,0.29140076,686.34,685.94,0.612]
[1748514491168,1.04936231,686.33,685.94,0.612]
[1748514491370,1.04936231,686.32,685.94,0.612]
[1748514491566,1.04936231,686.31,685.94,0.612]
[1748514491870,1.04936231,686.3,685.94,0.612]
[1748514492070,1.04936231,686.29,685.94,0.612]
[1748514492368,1.04936231,686.28,685.94,0.612]
[1748514492666,1.04936231,686.27,685.94,0.612]
[1748514492869,1.04936231,686.26,685.94,0.612]
[1748514493068,1.04936231,686.25,685.95,0.749]
[1748514493271,1.04936231,686.24,685.95,0.749]
[1748514493472,1.04936231,686.23,685.95,0.749]
[1748514493670,1.04936231,686.22,685.95,0.749]
[1748514493871,1.04936231,686.21,685.95,0.749]
[1748514494072,1.04936231,686.2,685.95,0.749]
[1748514494274,1.04936231,686.19,685.95,0.749]
[1748514494472,1.04936231,686.18,685.95,0.749]
[1748514494673,1.04936231,686.17,685.95,0.749]
[1748514494869,1.04929605,686.16,685.95,0.749]
[1748514495074,1.04929727,686.15,685.95,0.749]
[1748514495273,1.04929727,686.14,685.95,0.749]
[1748514495471,1.04929727,686.13,685.95,0.749]
[1748514495675,1.04929727,686.12,685.95,0.749]
[1748514495971,1.04929727,686.11,685.95,0.749]
[1748514496175,0.29140076,686.34,685.95,0.749]
[1748514496176,1.04924269,686.1,685.95,0.749]
[1748514496476,1.04924525,686.09,685.95,0.749]
[1748514496771,1.0492519,686.08,685.95,0.749]
[1748514496975,1.0492519,686.07,685.95,0.749]
[1748514497175,1.0492519,686.06,685.95,0.749]
[1748514497371,1.0492519,686.05,685.95,0.749]
[1748514497571,1.04923059,686.04,685.95,0.749]
[1748514497771,1.04923059,686.03,685.95,0.749]
[1748514497972,1.04923059,686.02,685.95,0.749]
[1748514498174,1.04923059,686.01,685.95,0.749]
[1748514498378,1.04923059,686.0,685.95,0.749]
[1748514498574,1.04923059,685.99,685.95,0.749]
[1748514498878,1.04923059,685.98,685.95,0.749]
[1748514499079,1.04923059,685.97,685.95,0.749]
[1748514499282,0.29140076,686.34,685.95,0.749]
[1748514499476,1.04918443,686.33,685.95,0.749]
[1748514499674,1.34059368,686.32,685.95,0.749]
[1748514499872,1.34059793,686.31,685.95,0.749]
[1748514500078,1.34060217,686.3,685.95,0.749]
[1748514500277,1.34044438,686.29,685.95,0.749]
[1748514500475,1.34044863,686.28,685.95,0.749]
[1748514500675,1.04902239,686.27,685.95,0.749]
[1748514500875,1.04902239,686.26,685.95,0.749]
[1748514501076,1.04902239,686.25,685.95,0.749]
[1748514501278,1.04902239,686.24,685.95,0.749]
[1748514501481,1.04902239,686.23,685.95,0.749]
[1748514501780,1.04902239,686.22,685.95,0.749]
[1748514501981,0.29142624,686.28,685.95,0.749]
[1748514502176,1.04890265,686.27,685.95,0.749]
[1748514502382,1.04890265,686.26,685.95,0.749]
[1748514502578,1.0489047,686.25,685.95,0.749]
[1748514502782,1.0489047,686.24,685.95,0.749]
[1748514502979,1.0489047,686.23,685.95,0.749]
[1748514503182,1.0489684,686.22,685.95,0.749]
[1748514503383,1.0489684,686.21,685.95,0.749]
[1748514503582,1.0489684,686.2,685.95,0.749]
[1748514503780,1.0489684,686.19,685.95,0.749]
[1748514503982,1.0489684,686.18,685.95,0.749]
[1748514504179,1.04892856,686.17,685.95,0.749]
[1748514504381,1.04892856,686.16,685.95,0.749]
[1748514504579,1.04892856,686.15,685.95,0.749]
[1748514504779,0.29142624,686.28,685.95,0.749]
[1748514505081,1.04912068,686.27,685.95,0.749]
[1748514505280,1.04912068,686.26,685.95,0.749]
[1748514505479,1.04912068,686.25,685.95,0.749]
[1748514505680,1.0490625,686.24,685.95,0.749]
[1748514505878,1.0490625,686.23,685.95,0.749]
[1748514506079,1.0490625,686.22,685.95,0.749]
[1748514506280,1.0490625,686.21,685.95,0.749]
[1748514506480,1.0490625,686.2,685.95,0.749]
[1748514506685,1.0490625,686.19,685.95,0.749]
[1748514506885,1.0490625,686.18,685.95,0.749]
[1748514507082,1.0490625,686.17,685.95,0.749]
[1748514507286,1.04978043,686.16,685.95,0.749]
[1748514507587,1.04981035,686.15,685.95,0.749]
[1748514507788,1.04981035,686.14,685.95,0.749]
[1748514507987,1.04981035,686.13,685.95,0.749]
[1748514508187,1.04981035,686.12,685.95,0.749]
[1748514508485,1.04981035,686.11,685.95,0.749]
[1748514508788,1.04981035,686.1,685.95,0.749]
[1748514509089,1.04981035,686.09,685.95,0.749]
[1748514509388,1.04981035,686.08,685.95,0.749]
[1748514509690,1.04981035,686.07,685.95,0.749]
[1748514509889,1.04981035,686.06,685.95,0.749]
[1748514510089,1.04981035,686.05,685.95,0.749]
[1748514510290,0.29142624,686.28,685.95,0.749]
[1748514510590,1.05005321,686.27,685.95,0.749]
[1748514510789,1.05005321,686.26,685.95,0.749]
[1748514510989,1.0500916,686.25,685.95,0.749]
[1748514511188,1.0500916,686.24,685.95,0.749]
[1748514511386,1.0500916,686.23,685.95,0.749]
[1748514511586,1.05007399,686.22,685.95,0.749]
[1748514511785,1.05007399,686.21,685.95,0.749]
[1748514512091,1.05007399,686.2,685.95,0.749]
[1748514512290,1.05007607,686.19,685.95,0.749]
[1748514512589,1.05015139,686.18,685.95,0.749]
[1748514512789,1.05015139,686.17,685.95,0.749]
[1748514512986,0.29142624,686.28,685.95,0.749]
[1748514513186,1.05012323,686.27,685.95,0.749]
[1748514513389,1.05012323,686.26,685.95,0.749]
[1748514513687,1.05012323,686.25,685.95,0.749]
[1748514513889,1.05012323,686.24,685.95,0.749]
[1748514514188,1.05012323,686.23,685.95,0.749]
[1748514514389,1.05012323,686.22,685.96,0.727]
[1748514514589,1.05012323,686.21,685.96,0.727]
[1748514514789,1.05012323,686.2,685.96,0.727]
[1748514514989,1.05012323,686.19,685.96,0.727]
[1748514515191,1.05012323,686.18,685.96,0.727]
[1748514515385,1.05012323,686.17,685.96,0.727]
[1748514515585,0.29142624,686.28,685.96,0.727]
[1748514515784,1.05020245,686.27,685.96,0.727]
[1748514515989,1.05020245,686.26,685.96,0.727]
[1748514516189,1.05020245,686.25,685.96,0.727]
[1748514516390,1.05020245,686.24,685.96,0.727]
[1748514516591,1.05020245,686.23,685.96,0.727]
[1748514516791,1.05020245,686.22,685.96,0.727]
[1748514516992,1.05020245,686.21,685.96,0.727]
[1748514517190,1.05020245,686.2,685.96,0.727]
[1748514517393,1.05020245,686.19,685.96,0.727]
[1748514517594,1.05020245,686.18,685.96,0.727]
[1748514517894,1.05041352,686.17,685.96,0.727]
[1748514518189,0.29142624,686.28,685.96,0.727]
[1748514518493,1.05040993,686.27,685.96,0.727]
[1748514518788,1.05040993,686.26,685.96,0.727]
[1748514518994,1.05047031,686.25,685.96,0.727]
[1748514519294,0.29142624,686.28,685.96,0.727]
[1748514519489,1.05046663,686.27,685.96,0.727]
[1748514519691,1.05046663,686.26,685.96,0.727]
[1748514519890,1.05046663,686.25,685.96,0.727]
[1748514520194,1.05046663,686.24,685.96,0.727]
[1748514520493,0.29142624,686.28,685.96,0.727]
[1748514520494,1.05046663,686.23,685.96,0.727]
[1748514520694,1.05046663,686.22,685.96,0.727]
[1748514520892,1.05058158,686.21,685.96,0.727]
[1748514521097,1.05058158,686.2,685.96,0.727]
[1748514521295,1.05058158,686.19,685.96,0.727]
[1748514521496,1.05058158,686.18,685.96,0.727]
[1748514521691,1.05068107,686.17,685.96,0.727]
[1748514521894,1.05068107,686.16,685.96,0.727]
[1748514522095,1.05066914,686.15,685.96,0.727]
[1748514522297,1.0506707,686.14,685.96,0.727]
[1748514522599,1.0506707,686.13,685.96,0.727]
[1748514522794,1.0506707,686.12,685.96,0.727]
[1748514523100,1.05069871,686.11,685.96,0.727]
[1748514523293,0.29142624,686.28,685.96,0.727]
[1748514523497,1.05068249,686.27,685.96,0.727]
[1748514523696,1.05068249,686.26,685.96,0.727]
[1748514523993,1.05068249,686.25,685.96,0.727]
[1748514524195,0.29142624,686.28,685.96,0.727]
[1748514524393,1.05070112,686.27,685.96,0.727]
[1748514524598,1.05072627,686.26,685.96,0.727]
[1748514524798,1.05072627,686.25,685.96,0.727]
[1748514524996,1.05073523,686.24,685.96,0.727]
[1748514525197,1.05073523,686.23,685.96,0.727]
[1748514525399,1.05073523,686.22,685.96,0.727]
[1748514525595,1.05073523,686.21,685.96,0.727]
[1748514525895,0.29142624,686.28,685.96,0.727]
[1748514526092,1.0507647,686.27,685.96,0.727]
[1748514526297,1.05076382,686.26,685.96,0.727]
[1748514526600,1.05076382,686.25,685.96,0.727]
[1748514526794,1.05076382,686.24,685.96,0.727]
[1748514526997,1.05076382,686.23,685.96,0.727]
[1748514527198,1.05076382,686.22,685.96,0.727]
[1748514527399,1.05076382,686.21,685.96,0.727]
[1748514527598,1.0508073,686.2,685.96,0.727]
[1748514527797,1.0508073,686.19,685.96,0.727]
[1748514528093,1.0508073,686.18,685.96,0.727]
[1748514528293,1.0508073,686.17,685.96,0.727]
[1748514528599,1.05086514,686.16,685.96,0.727]
[1748514528795,1.05086514,686.15,685.96,0.727]
[1748514528999,1.05086514,686.14,685.96,0.727]
[1748514529201,1.05086514,686.13,685.96,0.727]
[1748514529501,1.05079193,686.12,685.96,0.727]
[1748514529701,1.05081133,686.11,685.96,0.727]
[1748514529895,1.05081133,686.1,685.96,0.727]
[1748514530101,1.05081133,686.09,685.96,0.727]
[1748514530299,1.05081133,686.08,685.96,0.727]
[1748514530500,1.05081133,686.07,685.96,0.727]
[1748514530698,1.05081133,686.06,685.96,0.727]
[1748514530898,1.05081133,686.05,685.96,0.727]
[1748514531099,0.29142624,686.28,685.96,0.727]
[1748514531399,1.05083596,686.27,685.96,0.727]
[1748514531603,1.05083596,686.26,685.96,0.727]
[1748514531804,1.05083596,686.25,685.96,0.727]
[1748514532001,1.05083596,686.24,685.96,0.727]
[1748514532200,1.05083596,686.23,685.96,0.727]
[1748514532498,1.05086022,686.22,685.97,0.51]
[1748514532703,1.05088325,686.21,685.97,0.51]
[1748514532902,0.29142624,686.28,685.97,0.51]
[1748514533105,1.05087823,686.27,685.97,0.51]
[1748514533404,0.29142624,686.28,685.97,0.51]
[1748514533405,1.05087874,686.26,685.97,0.51]
[1748514533603,1.05087874,686.25,685.97,0.51]
[1748514533801,1.05087874,686.24,685.97,0.51]
[1748514534104,0.29142624,686.28,685.97,0.51]
[1748514534304,1.05090163,686.27,685.97,0.51]
[1748514534505,1.05090036,686.26,685.97,0.51]
[1748514534704,0.29142624,686.28,685.97,0.51]
[1748514534705,1.05092329,686.25,685.97,0.51]
[1748514535001,1.05093242,686.24,685.97,0.51]
[1748514535305,1.05093242,686.23,685.97,0.51]
[1748514535504,1.05093242,686.22,685.97,0.51]
[1748514535706,1.05093242,686.21,685.97,0.51]
[1748514536000,1.05093242,686.2,685.97,0.51]
[1748514536202,1.05093242,686.19,685.97,0.51]
[1748514536406,1.05095208,686.18,685.97,0.51]
[1748514536603,1.05095481,686.17,685.97,0.51]
[1748514536807,0.29142624,686.28,685.97,0.51]
[1748514537002,1.05097768,686.27,685.97,0.51]
[1748514537206,1.05097768,686.26,685.97,0.51]
[1748514537506,1.05097768,686.25,685.97,0.51]
[1748514537706,1.05097768,686.24,685.97,0.51]
[1748514537905,0.29142624,686.28,685.97,0.51]
[1748514537906,1.05097768,686.23,685.97,0.51]
[1748514538102,1.05097768,686.22,685.97,0.51]
[1748514538308,0.29142624,686.28,685.97,0.51]
[1748514539207,1.05104342,686.27,685.97,0.51]
[1748514539507,0.29142624,686.28,685.97,0.51]
[1748514540307,1.05108653,686.27,685.97,0.51]
[1748514540507,0.29142624,686.28,685.97,0.51]
[1748514541106,1.05113747,686.27,685.97,0.51]